Cogmind - Beta 14 @@@ ROGUE MODE // 2024.12.26 @ 02:05:45 Player: x1b Result: Destroyed by G-47 Trooper with Particle Gun Performance ------------- Evolutions (2) 1000 Regions Visited (4) 800 Robots Destroyed (40) 200 Value Destroyed (1059) 1059 Prototype IDs (2) 40 Alien Tech Used (0) 0 Bonus (98) 98 TOTAL SCORE: 3197 Bonus ------- High Alert Combat Kills 16 Follower Combat Kills 82 Cogmind --------- Core Integrity 0/550 Matter 100/300 Energy 61/290 System Corruption 0% Temperature Cool (27) Movement Walking (190) Ox1 Location -8/Storage Parts ------- > --- POWER (1) -------- Improved Deuterium Engine > --- PROPULSION (4) --- Aluminum Leg Aluminum Leg > --- UTILITY (3) ------ Large Storage Unit > --- WEAPON (3) ------- (None) > --- INVENTORY (15) --- Improved Deuterium Engine Aluminum Leg Medium Storage Unit EM Shotgun Light Assault Rifle Gauss Cannon Gauss Cannon Peak State ------------ > --- POWER ------------ Light Ion Engine > --- PROPULSION ------- VTOL Module VTOL Module VTOL Module VTOL Module > --- UTILITY ---------- Medium Storage Unit > --- WEAPON ----------- EM Shotgun Gauss Cannon Gauss Cannon > --- INVENTORY -------- Improved Deuterium Engine Improved Deuterium Engine Aluminum Leg Aluminum Leg Aluminum Leg Flight Unit Flight Unit [Rating: 21] Favorites ----------- Power Ion Engine Engine Ion Engine Propulsion Aluminum Leg Leg Aluminum Leg Flight Unit VTOL Module Utility Small Storage Unit Storage Small Storage Unit Weapon Grenade Launcher Energy Gun Medium Laser Ballistic Gun Assault Rifle Ballistic Cannon Gauss Cannon Launcher Grenade Launcher Build | -11 -10 -9 -8 -8 ------- Run | Yrd Mat Mat Mat Sto Slots Evolved 4 | . . 2 2 . Power . | . . . . . Propulsion 2 | . . 1 1 . Utility 1 | . . 1 . . Weapon 1 | . . . 1 . Parts Attached 47 | 6 10 7 21 3 Power 9 | 1 2 2 3 1 Engine 9 | 1 2 2 3 1 Core . | . . . . . Reactor . | . . . . . Propulsion 21 | 2 3 4 10 2 Treads . | . . . . . Leg 17 | 2 3 4 6 2 Wheel . | . . . . . Hover . | . . . . . Flight 4 | . . . 4 . Utility 6 | 1 1 . 4 . Device . | . . . . . Storage 6 | 1 1 . 4 . Processor . | . . . . . Hackware . | . . . . . Protection . | . . . . . Artifact . | . . . . . Weapon 11 | 2 4 1 4 . Energy Gun 4 | . 3 . 1 . Energy Cannon . | . . . . . Ballistic Gun 3 | 2 . . 1 . Ballistic Cannon 2 | . . . 2 . Launcher 2 | . 1 1 . . Special Weapon . | . . . . . Impact Weapon . | . . . . . Slashing Weapon . | . . . . . Piercing Weapon . | . . . . . Special Melee Weapon . | . . . . . Unidentified Prototypes 2 | . 1 1 . . Parts Lost 8 | . 1 . . 7 Power 2 | . 1 . . 1 Propulsion 4 | . . . . 4 Utility . | . . . . . Weapon 2 | . . . . 2 Highest Loss Streak 7 | . 1 . . 7 To Critical Strikes . | . . . . . Average Slot Usage (%) 87 | . 97 88 68 63 Engine 10 | . 11 11 9 7 Leg 28 | . 28 33 24 30 Flight 1 | . . . 9 . Storage 21 | . 28 22 9 9 Energy Gun 7 | . 5 16 2 . Ballistic Gun 5 | . 12 . . . Ballistic Cannon 3 | . . . 13 15 Launcher 6 | . 10 5 . . Peak Build Rating 21 | 6 13 15 21 16 Average Rating 11 | 5 9 13 14 14 On Entrance 9 | . 6 12 12 16 Naked Turns . | . . . . . Heaviest Build 95 | 14 95 95 37 37 Greatest Support 40 | 20 26 36 40 40 Greatest Overweight (x) 8 | 2 4 2 1 8 Average Overweight (x) 1 | . 3 2 . . Largest Inventory Capacity 25 | 8 25 25 25 15 Average Capacity 21 | 7 24 25 13 15 Most Carried 25 | 2 18 25 20 10 Average Carried 13 | 1 12 20 7 9 Final Capacity 25 | 8 25 25 15 15 Final Carried 20 | 2 17 20 10 7 Class Distribution -------------------- 94% | Mutant 4% | Sprinter Dominant Class ---------------- Mutant | -10/Materials Mutant | -9/Materials Mutant | -8/Materials Mutant | -8/Storage Resources | -11 -10 -9 -8 -8 ----------- Run | Yrd Mat Mat Mat Sto Matter Collected 911 | 258 244 140 219 50 Remotely . | . . . . . Salvage Created 1047 | . 354 468 175 50 Parts 68 | . 22 32 12 2 Haulers Intercepted . | . . . . . Recyclers Shooed 2 | . 1 1 . . Parts Field Recycled . | . . . . . Retrieved Matter . | . . . . . Parts Self-Destructed . | . . . . . Prevented . | . . . . . Kills | -11 -10 -9 -8 -8 ------- Run | Yrd Mat Mat Mat Sto Combat Hostiles Destroyed 37 | . 13 18 4 2 Guns 19 | . 8 9 2 . Cannons 4 | . . . 2 2 AOE 14 | . 5 9 . . Classes Destroyed 6 | . 4 1 1 . Builder 1 | . 1 . . . Watcher 2 | . 1 . 1 . Swarmer 16 | . 6 9 . 1 Grunt 18 | . 7 8 2 1 Brawler 1 | . . 1 . . Sentry 2 | . . . 2 . Best Kill Streak 4 | . 4 4 2 2 Combat Bots Only 4 | . 4 4 1 2 Max Kills in Single Turn 4 | . 2 4 1 1 Gunslinging . | . . . . . Exploded 4 | . 2 4 . . Melee . | . . . . . Uniques/NPCs Destroyed . | . . . . . Combat | -11 -10 -9 -8 -8 -------- Run | Yrd Mat Mat Mat Sto Hostile Shots Fired 322 | . 122 40 42 118 Missed 94 | . 39 12 15 28 Damage Taken 2763 | . 769 347 389 1258 Core 754 | . 174 30 55 495 Absorbed by Shields . | . . . . . Core Remaining (%) 74 | 100 30 92 . . Volleys Fired 87 | . 34 25 25 3 Largest 2 | . 2 2 2 2 Hottest 106 | . 106 106 96 96 Shots Fired 148 | . 51 47 44 6 Gun 91 | . 45 40 6 . Cannon 44 | . . . 38 6 Launcher 13 | . 6 7 . . Special . | . . . . . Kinetic 74 | . 30 . 38 6 Thermal 55 | . 15 40 . . Explosive 13 | . 6 7 . . Electromagnetic 6 | . . . 6 . Robot Hit Streak 9 | . 9 5 7 2 Robot Miss Streak 11 | . 4 4 11 2 Penetration Max . | . . . . . Secondary Targets 2 | . 2 . . . Max Gunslinging Chain 1 | . 1 . . . Shots Hit Robots 81 | . 28 29 21 3 Core Hits 55 | . 22 20 11 2 Critical Kills . | . . . . . Critical Parts Destroyed 1 | . 1 . . . Critical Strikes 7 | . 1 2 4 . Burn 2 | . . 2 . . Destroy 1 | . 1 . . . Blast 4 | . . . 4 . Melee Attacks . | . . . . . Impact . | . . . . . Slashing . | . . . . . Piercing . | . . . . . Sneak Attacks . | . . . . . Combat Hostiles . | . . . . . Follow-up Attacks . | . . . . . Damage Inflicted 2048 | . 691 718 557 82 Guns 823 | . 357 391 75 . Cannons 564 | . . . 482 82 Explosions 654 | . 327 327 . . Melee . | . . . . . Ramming 7 | . 7 . . . Kinetic 793 | . 229 . 482 82 Thermal 519 | . 128 391 . . Explosive 654 | . 327 327 . . Electromagnetic 75 | . . . 75 . Impact . | . . . . . Slashing . | . . . . . Piercing . | . . . . . Highest Corruption 1 | . 1 . . . Average Corruption 1 | . 1 . . . Corruption Purged . | . . . . . Corruption Blocked . | . . . . . Overload Shots . | . . . . . Overflow Damage 6 | . . . 6 . Projectiles 6 | . . . 6 . Explosions . | . . . . . Melee . | . . . . . Knockbacks 6 | . . . 6 . Impact . | . . . . . Kinetic 6 | . . . 6 . Secondary . | . . . . . Self-Inflicted Damage 73 | . 28 45 . . Shots 4 | . 1 3 . . Rammed . | . . . . . Targets Rammed 2 | . 2 . . . Kicked 2 | . 2 . . . Crushed . | . . . . . Highest Temperature 419 | . 60 419 351 189 Average Temperature 98 | . 16 84 144 102 Received Heat Transfer 1137 | . 144 66 270 657 Effects 1 | . . . 1 . Shutdowns 1 | . . . 1 . Siege Activations . | . . . . . Robots Corrupted . | . . . . . Combat Hostiles . | . . . . . Parts Fried 1 | . . . 1 . Impact Corruptions . | . . . . . Robots Melted . | . . . . . Combat Hostiles . | . . . . . Parts Melted 4 | . 1 3 . . Heat Transferred 1443 | . 296 1147 . . Parts Sabotaged . | . . . . . Parts Stolen . | . . . . . Parts Stripped . | . . . . . Power Chain Reactions . | . . . . . Alert | -11 -10 -9 -8 -8 ------- Run | Yrd Mat Mat Mat Sto Peak Influence 458 | . 343 458 380 174 Initial 193 | . . 103 193 81 Average 174 | . 98 264 288 116 Maximum Alert Level 2 | . 1 2 1 . Low Security (%) 58 | 100 80 32 21 100 Level 1 36 | . 19 49 78 . Level 2 4 | . . 17 . . Level 3 . | . . . . . Level 4 . | . . . . . Level 5 . | . . . . . High Security . | . . . . . Max Security . | . . . . . Squads Dispatched 9 | . 3 2 . 4 Investigation 1 | . . 1 . . Extermination . | . . . . . Reinforcement 6 | . 3 1 . 2 Assault 2 | . . . . 2 Garrison . | . . . . . Intercept . | . . . . . Searches Triggered . | . . . . . Construction Impeded . | . . . . . Haulers Reinforced . | . . . . . Active Scanning Responses . | . . . . . Cargo Convoy Interrupts . | . . . . . Stealth | -11 -10 -9 -8 -8 --------- Run | Yrd Mat Mat Mat Sto Distress Signals 9 | . 5 2 1 1 Communications Jammed . | . . . . . Distress Signals . | . . . . . Times Spotted 74 | . 23 18 7 26 Peak Tracking Total 18 | . 6 3 3 18 Tactical Retreats 4 | . 2 1 . 1 Traps | -11 -10 -9 -8 -8 ------- Run | Yrd Mat Mat Mat Sto Traps Triggered 1 | . 1 . . . Indirectly . | . . . . . Trap Hack Attempts . | . . . . . Triggered . | . . . . . Disarmed . | . . . . . Reprogrammed . | . . . . . Reused . | . . . . . Traps Extracted . | . . . . . Installed . | . . . . . Triggered . | . . . . . Machines | -11 -10 -9 -8 -8 ---------- Run | Yrd Mat Mat Mat Sto Machines Disabled 5 | . 3 2 . . Max in Single Turn 2 | . 2 1 . . Machines Repaired . | . . . . . Machines Dismantled . | . . . . . Machines Sabotaged . | . . . . . Overloaded Fab Kills . | . . . . . Hacking | -11 -10 -9 -8 -8 --------- Run | Yrd Mat Mat Mat Sto Machines Accessed 4 | . . 2 1 1 Terminals 4 | . . 2 1 1 Fabricators . | . . . . . Repair Stations . | . . . . . Recycling Units . | . . . . . Scanalyzers . | . . . . . Garrison Access . | . . . . . Total Hacks 12 | . . 8 2 2 Successful 6 | . . 3 1 2 Failed 6 | . . 5 1 . Catastrophic 3 | . . 3 . . Database Lockouts . | . . . . . Manual . | . . . . . Terminals 12 | . . 8 2 2 Fabricators . | . . . . . Repair Stations . | . . . . . Recycling Units . | . . . . . Scanalyzers . | . . . . . Garrison Access . | . . . . . Terminal Hacks 6 | . . 3 1 2 Record 2 | . . . . 2 Alert Level 2 | . . 2 . . Locate Traps 1 | . . 1 . . Hauler Manifests 1 | . . . 1 . Fabricator Hacks . | . . . . . Repair Station Hacks . | . . . . . Recycling Unit Hacks . | . . . . . Scanalyzer . | . . . . . Garrison Access Hacks . | . . . . . Unauthorized Hacks . | . . . . . Terminals . | . . . . . Fabricators . | . . . . . Repair Stations . | . . . . . Recycling Units . | . . . . . Scanalyzers . | . . . . . Garrison Access . | . . . . . Data Cores Recovered . | . . . . . Used . | . . . . . Hacking Detections 3 | . . 2 1 . Full Trace Events 2 | . . 2 . . Feedback Events . | . . . . . Feedback Blocked . | . . . . . Robot Schematics Acquired . | . . . . . Robots Built . | . . . . . Authchips . | . . . . . Time . | . . . . . Total Robot Build Rating . | . . . . . Part Schematics Acquired . | . . . . . Parts Built . | . . . . . Authchips . | . . . . . Time . | . . . . . Total Part Build Rating . | . . . . . Parts Repaired . | . . . . . Time . | . . . . . Parts Recycled . | . . . . . Recycled Matter . | . . . . . Retrieved Matter . | . . . . . Retrieved Components . | . . . . . Parts Scanalyzed . | . . . . . Part Schematics Acquired . | . . . . . Parts Damaged . | . . . . . Bothacking | -11 -10 -9 -8 -8 ------------ Run | Yrd Mat Mat Mat Sto Used RIF Installer . | . . . . . Robots Hacked . | . . . . . Non-combat . | . . . . . Combat . | . . . . . Robot Hacks Applied . | . . . . . Relay Couplers Released . | . . . . . Fabnet Peak Effective % . | . . . . . Robots Rewired . | . . . . . Allies Hacked . | . . . . . Hacks Repelled . | . . . . . Allies | -11 -10 -9 -8 -8 -------- Run | Yrd Mat Mat Mat Sto Total Allies 12 | . . . . 12 Largest Group 10 | . . . . 10 Highest-Rated Group 173 | . . . . 173 Highest-Rated Ally 31 | . . . . 31 Total Orders . | . . . . . Ally Attacks 30 | . . . . 30 Total Damage 386 | . . . . 386 Kills 4 | . . . . 4 Allies Corrupted . | . . . . . Allies Melted . | . . . . . Intel | -11 -10 -9 -8 -8 ------- Run | Yrd Mat Mat Mat Sto Robot Analysis Total . | . . . . . Derelict Logs Recovered . | . . . . . Drone Launches . | . . . . . Drone Recoveries . | . . . . . Exploration | -11 -10 -9 -8 -8 ------------- Run | Yrd Mat Mat Mat Sto Turns Passed 2693 | 99 1237 725 482 150 Spaces Moved 1044 | 75 317 243 333 76 Core 14 | 9 . . . 5 Treads . | . . . . . Legs 896 | 66 317 243 199 71 Wheels . | . . . . . Hover . | . . . . . Flight 134 | . . . 134 . Fastest Speed 26 | 50 120 260 26 120 Average Speed 215 | 118 353 260 92 137 Slowest Speed 450 | 150 400 260 190 450 Overloaded Moves . | . . . . . Propulsion Burnouts . | . . . . . Robots Hopped . | . . . . . Cave-ins Triggered . | . . . . . Exploration Rate (%) 19 | 6 41 29 10 11 Regions Visited 4 Branch Regions 1 Pre-discovered Areas . | . . . . . Known Exits Taken . | . . . . . Unknown Exits Taken 4 | 1 1 1 1 . Scrap Searched . | . . . . . Spaces Dug . | . . . . . Terrain Destroyed 109 | . 30 45 30 4 Melee . | . . . . . Projectile 34 | . . . 30 4 AOE 75 | . 30 45 . . Terrain Rammed . | . . . . . Walls Destroyed . | . . . . . Machines Disabled . | . . . . . Actions | -11 -10 -9 -8 -8 --------- Run | Yrd Mat Mat Mat Sto Total 1334 | 82 376 293 467 116 Wait 87 | . . . 53 34 Move 1040 | 74 316 242 332 76 Hop . | . . . . . Pick Up 41 | 2 14 11 14 . Fast Attach 12 | 6 1 . 5 . Attach 15 | . 1 2 9 3 Detach 3 | . . . 3 . Swap 20 | . 8 5 7 . Drop 27 | . . 8 19 . Fire 87 | . 34 25 25 3 Melee . | . . . . . Ram . | . . . . . Kick 2 | . 2 . . . Crush . | . . . . . Escape Stasis . | . . . . . Rewire . | . . . . . Trap . | . . . . . Miscellaneous . | . . . . . Route ------- -11/Scrapyard -10/Materials -9/Materials -8/Materials -8/Storage History --------- Turn | Location | Event 44 | -11/Scrapyard | Discovered new exit (range 13) 100 | -11/Scrapyard | Entered Materials 301 | -10/Materials | Build established: Mutant 1154 | -10/Materials | Core integrity fell below 50% 1250 | -10/Materials | Discovered new exit (range 16) 1337 | -10/Materials | Entered another Materials area 1337 | -9/Materials | Evolved 2 slots: Propulsion x1, Utility x1 2021 | -9/Materials | Discovered new exit (range 13) 2062 | -9/Materials | Entered another Materials area 2062 | -8/Materials | Evolved 2 slots: Propulsion x1, Weapon x1 2134 | -8/Materials | Discovered new exit (range 16) 2544 | -8/Materials | Entered Storage 2572 | -8/Storage | Met a pair of Derelict thieves 2681 | -8/Storage | Core integrity fell below 50% 2682 | -8/Storage | Assisted by bots powering up and referring to "LRC-V3" 2686 | -8/Storage | Core integrity fell below 20% 2694 | -8/Storage | Destroyed by G-47 Trooper with Particle Gun Last Messages --------------- Gauss Cannon destroyed. Aluminum Leg destroyed. Gauss Cannon destroyed. K-01 Serf collects debris. M-28 Smith repairs S-10 Pest. M-28 Smith repairs G-47 Trooper. K-01 Serf collects debris. Critical hit (Burn: +37). One of them suddenly speaks: "Hello LRC-V3. What is your command?" Critical hit (Burn: +37). K-01 Serf collects debris. [Achievement: The More The Merrier] S-10 Pest destroyed. K-01 Serf collects debris. G-47 Trooper destroyed. K-01 Serf collects debris. G-47 Trooper destroyed. Trooper 3i destroyed. K-01 Serf collects debris. Map ----- +----------------------------------------------------+ | ????????????????????# #???????? | | ????????????????????## ##???????? | | ?????????????????????# #????????? | | ?????????????????????# #########? | | ??????????? ?????????# # # !!#? | | ?????????? ???????# # " ! #? | | ????????? ??????# + !#? | | ??????? ###### # " #? | | ??????? ] = ##T# !! #? | | ??????????T" %[ #### ! !#? | | ???????? " #??######? | | ???????? "%" #????????? | | ????????# ############ #????????? | | ???????????????????#?# #????????? | | ??????????????????? # +????????? | | ???????????????????? # #????????? | | ?????????????????????r i #????????? | | ?????????????????????#r #????????? | | ?????????????????????# g#????????? | | ?????????????????????# kg##???????? | | ????????????????????## %=[#???????? | | ????????????????????# =%=#?####??? | | ????????????????????# gmg%## #??? | | ????????????????????# ==g #??? | | ????????????????????# % gg# #??? | | ????????????????????# g@# #??? | | ????????????????????###%;###T #??? | | ??????????????????????# ##??####??? | | ????????????????????? ; #?????????? | | ???????????????????? ; #?????????? | | ???????????????????"" " ?????????? | | ??????????????????""" # #?????????? | | ?????????????????"""" # #?????????? | | ??????????????????####? #?????????? | | ??????????????????????? ?????????? | | ???????????????????????T ?????????? | | ???????????????????????" ?????????? | | ???????????????????????? ?????????? | | ??????????????????????????????????? | | ??????????????????????????????????? | | ??????????????????????????????????? | | ??????????????????????????????????? | | ??????????????????????????????????? | | ??????????????????????????????????? | | ??????????????????????????????????? | | ??????????????????????????????????? | | ??????????????????????????????????? | | ??????????????????????????????????? | | ??????????????????????????????????? | | ??????????????????????????????????? | +----------------------------------------------------+ Best States ------------- Heat Dissipation 31 Energy Generation 10 Energy Capacity 250 Matter Stores 300 Matter Capacity 300 Sight Range 16 Terrain Scan Density 10 Evasion (%) 64 Item Schematics ----------------- None Robot Schematics ------------------ None Fabricated ------------ Nothing Alien Tech Used ----------------- None Achievements -------------- One Hack Too Far Storm Trooper The More The Merrier Challenges ------------ None Game ------ Seed ComponentMachineWeb Manual? 0 Play Time 00:20:41 Cumulative 2.7 hours Start 2024.12.26 @ 01:41:16 End 2024.12.26 @ 02:05:45 Sessions 1 Manual Loads 0 Difficulty Rogue Special Mode None Game No. 9 Rogue 3 Adventurer 6 Explorer 0 Win Type - Total 0 Types 0/0/0/0/0/0/0/0/0 Lore% 1 Gallery% 8 Achievement% 8 Wizard Run 0 Options --------- Layout 1 ASCII 0 Keyboard 0 Movement Arrows Keybinds 0 Fullscreen 1 Font 24/Smallcaps Map View 50x35 Zoom Use 0% Tactical HUD 0 Map Filters NONE Filters NONE Steam 1 RUN: e2891dd0-e0ce-4204-9ae0-9628f5ee049b